[Event "World Junior U20 Girls 2018"]
[Site "Gebze"]
[Date "2018.09.08"]
[Round "5"]
[White "Caglar, Sila"]
[Black "Gomez Barrera, Javiera Belen"]
[Result "1/2-1/2"]
[ECO "C47"]
[WhiteElo "2208"]
[BlackElo "2035"]
[Annotator "NA"]
[PlyCount "62"]
[EventDate "2018.09.05"]
[EventType "swiss"]
[EventCountry "TUR"]
[SourceTitle "playchess.com"]
[Source "ChessBase"]
[SourceQuality "1"]
[TimeControl "40/5400+30:1800+30"]

1. e4 {[%emt 0:00:30]} e5 {[%emt 0:00:30]} 2. Nf3 {[%emt 0:00:30]} Nc6 {[%emt 0:00:30]} 3. Nc3 {[%emt 0:00:30]} Nf6 {[%emt 0:00:30]} 4. Be2 {[%emt 0:00:00]} d5 {[%emt 0:00:00]} 5. exd5 {[%emt 0:00:00]} Nxd5 {[%emt 0:00:00]} 6. O-O {[%emt 0:00:00]} Nxc3 {[%emt 0:00:30]} 7. bxc3 {[%emt 0:00:00]} e4 {[%emt 0:07:30] C47: Scotch Four Knights and Four Knights with 4 g3} 8. Ne1 {[%emt 0:00:30]} Bd6 {[%emt 0:00:30]} 9. f3 {[%emt 0:02:30]} Qh4 {[%emt 0:18:30]} (9... f5 10. fxe4 fxe4 11. Rb1 Qe7 12. d4 exd3 13. cxd3 Bd7 14. Rxb7 O-O-O 15. Rb2 {1-0 (29) Van Foreest,J (2629)-Giri,A (2752) Amstelveen 2017}) 10. g3 {[%emt 0:01:30]} Qe7 {[%emt 0:14:30]} 11. fxe4 {[%emt 0:05:30]} Qxe4 $146 {[%emt 0:01:30]} ({Predecessor:} 11... h5 12. d4 h4 13. Qd3 hxg3 14. hxg3 Qe6 15. g4 {0-1 (61) Vogel,R (2462)-Horvath,D (2429) Bad Blankenburg 2018}) 12. d4 {[%emt 0:01:30]} O-O {[%emt 0:07:30]} 13. Bd3 {[%emt 0:00:30]} Qd5 {[%emt 0:01:30]} 14. Qf3 {[%emt 0:12:30]} Qxf3 {[%emt 0:03:30]} 15. Nxf3 {[%emt 0:00:30]} h6 {[%emt 0:00:30]} 16. Bd2 {[%emt 0:05:30]} Bh3 {[%emt 0:02:30]} 17. Rf2 {[%emt 0:00:30]} Rae8 {[%emt 0:07:30]} 18. Nh4 {[%emt 0:06:30]} Ne7 {[%emt 0:03:30]} 19. Rb1 {[%emt 0:08:30]} b6 {[%emt 0:02:30]} 20. Re1 {[%emt 0:05:30]} g5 {[%emt 0:07:45]} 21. Nf3 {[%emt 0:06:30]} Ng6 {[%emt 0:01:11]} 22. Bc4 {[%emt 0:19:30]} Rxe1+ $11 {[%emt 0:00:53]} 23. Nxe1 {[%emt 0:00:30]} Kg7 {[%emt 0:01:07]} 24. Ng2 {[%emt 0:06:22]} f5 {[%emt 0:01:45]} 25. Be6 {[%emt 0:03:41]} Rf6 {[%emt 0:07:34]} 26. Bd7 {[%emt 0:00:53]} Rf7 {[%emt 0:01:37]} 27. Be6 {[%emt 0:00:51]} Rf6 {[%emt 0:00:30]} 28. Bd7 {[%emt 0:00:16]} Rf7 {[%emt 0:00:00]} 29. Be6 {[%emt 0:00:53]} Rf6 {[%emt 0:00:00]} 30. Bd7 {[%emt 0:01:44]} Rf7 {[%emt 0:00:28]} 31. Be6 {[%emt 0:01:55]} Rf6 {[%emt 0:00:21]} 1/2-1/2

[Event "World Junior U20 Girls 2018"]
[Site "Gebze"]
[Date "2018.09.08"]
[Round "5"]
[White "Ghukasyan, Siranush"]
[Black "Serikbay, Assel"]
[Result "1-0"]
[ECO "B41"]
[WhiteElo "2205"]
[BlackElo "2125"]
[Annotator "NA"]
[PlyCount "111"]
[EventDate "2018.09.05"]
[EventType "swiss"]
[EventCountry "TUR"]
[SourceTitle "playchess.com"]
[Source "ChessBase"]
[SourceQuality "1"]
[TimeControl "40/5400+30:1800+30"]

1. e4 {[%emt 0:02:30]} c5 {[%emt 0:00:30]} 2. Nf3 {[%emt 0:00:00]} e6 {[%emt 0:00:30]} 3. d4 {[%emt 0:00:00]} cxd4 {[%emt 0:00:00]} 4. Nxd4 {[%emt 0:00:30]} a6 {[%emt 0:00:00]} 5. c4 {[%emt 0:00:00]} Nf6 {[%emt 0:00:00]} 6. Nc3 {[%emt 0:00:00]} Qc7 {[%emt 0:00:00]} 7. Be2 {[%emt 0:00:30]} Bb4 {[%emt 0:00:30]} 8. Qc2 {[%emt 0:09:30] B41: Sicilian: Kan Variation: 5 c4} O-O {[%emt 0:01:30]} 9. O-O {[%emt 0:01:30]} b6 $146 {[%emt 0:11:30]} ({Predecessor:} 9... Nc6 10. Nxc6 dxc6 11. Be3 b5 12. f4 e5 13. f5 Qe7 14. Kh1 Bc5 15. Bg5 Bb7 16. g4 {1-0 (48) Pichot,A (2558)-Gordievsky,D (2630) Hanoi 2018}) 10. Bg5 {[%emt 0:09:30]} Be7 {[%emt 0:01:30]} 11. Qd2 {[%emt 0:09:30]} d6 {[%emt 0:03:30]} 12. Rac1 {[%emt 0:01:30]} Bb7 {[%emt 0:01:30]} 13. f3 {[%emt 0:00:30]} Nbd7 {[%emt 0:01:30]} 14. Rfd1 {[%emt 0:01:30]} Rac8 {[%emt 0:00:30]} 15. a3 {[%emt 0:02:30]} Qb8 {[%emt 0:07:30]} 16. b4 {[%emt 0:01:30]} Bd8 {[%emt 0:05:30]} 17. Nb3 {[%emt 0:00:00]} Bc7 {[%emt 0:00:30]} 18. Bf4 {[%emt 0:01:00]} Ne5 {[%emt 0:02:30]} 19. Bxe5 {[%emt 0:00:00]} dxe5 {[%emt 0:00:00]} 20. Qe3 {[%emt 0:04:00]} Rcd8 {[%emt 0:08:00]} 21. Rxd8 {[%emt 0:03:30]} Rxd8 {[%emt 0:00:00]} 22. Rd1 {[%emt 0:00:00]} Rxd1+ {[%emt 0:08:00]} 23. Bxd1 {[%emt 0:01:00]} Qd8 {[%emt 0:00:30]} 24. Be2 {[%emt 0:01:30]} Nh5 {[%emt 0:05:30]} 25. Qd3 {[%emt 0:09:30]} Qxd3 {[%emt 0:08:30]} 26. Bxd3 {[%emt 0:00:30]} Nf4 {[%emt 0:00:30]} 27. Bf1 {[%emt 0:00:00]} Kf8 {[%emt 0:01:30]} 28. Kf2 {[%emt 0:03:00]} Ke7 {[%emt 0:00:30]} 29. c5 {[%emt 0:04:30]} f5 {[%emt 0:06:30]} 30. b5 {[%emt 0:17:21]} axb5 {[%emt 0:07:30]} 31. Nxb5 {[%emt 0:00:09]} Kd8 {[%emt 0:02:25]} 32. Nxc7 {[%emt 0:00:56]} Kxc7 {[%emt 0:00:30]} 33. Ke3 {[%emt 0:00:00]} Bc6 {[%emt 0:01:30]} 34. g3 {[%emt 0:05:23]} Ng6 {[%emt 0:00:28]} 35. Bc4 {[%emt 0:01:35]} Nf8 {[%emt 0:00:22]} 36. h4 {[%emt 0:02:44]} g6 {[%emt 0:01:35]} 37. cxb6+ {[%emt 0:04:44]} Kxb6 {[%emt 0:00:03]} 38. g4 {[%emt 0:00:00]} h6 {[%emt 0:08:36]} 39. Bd3 {[%emt 0:04:09]} f4+ {[%emt 0:00:41]} 40. Kd2 {[%emt 0:00:00]} Bb5 {[%emt 0:00:00]} 41. Nc1 {[%emt 0:03:59]} Nd7 {[%emt 0:09:20]} 42. Kc3 {[%emt 0:02:30]} Ba4 {[%emt 0:07:30]} 43. Bc2 {[%emt 0:01:30]} Ka5 {[%emt 0:10:39]} 44. Nd3 {[%emt 0:15:06]} Bb5 {[%emt 0:00:26]} 45. Bb3 {[%emt 0:01:26]} g5 {[%emt 0:03:24]} 46. hxg5 {[%emt 0:02:41]} hxg5 {[%emt 0:00:09]} 47. Bc4 {[%emt 0:00:00]} Bxc4 {[%emt 0:07:39]} 48. Kxc4 {[%emt 0:00:02]} Kb6 $18 {[%emt 0:02:01]} 49. a4 {[%emt 0:00:42]} Ka5 {[%emt 0:00:30]} 50. Kb3 {[%emt 0:03:09]} Nb6 {[%emt 0:00:14]} 51. Nc5 {[%emt 0:00:56]} Nc8 {[%emt 0:00:36]} 52. Nxe6 {[%emt 0:00:33]} Nb6 {[%emt 0:00:30]} 53. Nxg5 {[%emt 0:00:00]} Nxa4 {[%emt 0:00:06]} 54. Nf7 {[%emt 0:00:05]} Kb5 {[%emt 0:00:41]} 55. Nd6+ {[%emt 0:00:54]} Ka5 {[%emt 0:00:26]} 56. g5 {[%emt 0:00:34]} 1-0

[Event "World Junior U20 Girls 2018"]
[Site "Gebze"]
[Date "2018.09.08"]
[Round "5"]
[White "Hilario, Aleyla"]
[Black "Hojjatova, Aydan"]
[Result "1-0"]
[ECO "E04"]
[WhiteElo "2203"]
[BlackElo "2356"]
[Annotator "ChessBase"]
[PlyCount "57"]
[EventDate "2018.09.05"]
[EventType "swiss"]
[EventCountry "TUR"]
[SourceTitle "playchess.com"]
[Source "ChessBase"]
[SourceQuality "1"]
[TimeControl "40/5400+30:1800+30"]

1. d4 {[%emt 0:00:30]} e6 {[%emt 0:00:30]} 2. Nf3 {[%emt 0:00:30]} Nf6 {[%emt 0:00:30]} 3. c4 {[%emt 0:00:30]} d5 {[%emt 0:00:30]} 4. g3 {[%emt 0:00:00]} dxc4 {[%emt 0:00:00]} 5. Bg2 {[%emt 0:00:00]} c6 {[%emt 0:00:00]} 6. Ne5 {[%emt 0:00:30]} Bb4+ {[%emt 0:00:30]} 7. Nc3 {[%emt 0:01:30]} Nd5 {[%emt 0:00:30]} 8. Bd2 {[%emt 0:00:30]} Nb6 {[%emt 0:00:30]} 9. e3 {[%emt 0:05:30]} O-O {[%emt 0:14:30]} 10. Ne4 {[%emt 0:00:30]} Qe7 {[%emt 0:05:30]} 11. Qc2 {[%emt 0:02:30]} Na6 {[%emt 0:05:30]} 12. O-O {[%emt 0:01:30]} f5 {[%emt 0:06:30]} 13. a3 Bxd2 {[%emt 0:03:30]} 14. Nxd2 {[%emt 0:01:00]} Bd7 {[%emt 0:02:30]} 15. Ndxc4 {[%emt 0:00:30]} Nd5 {[%emt 0:02:30]} 16. b4 {[%emt 0:02:30]} Nac7 {[%emt 0:00:30]} 17. Na5 {[%emt 0:00:30]} Rab8 {[%emt 0:03:30]} 18. Rfc1 {[%emt 0:03:30]} Be8 {[%emt 0:01:30]} 19. Rab1 {[%emt 0:01:30]} Bh5 {[%emt 0:07:30]} 20. e4 {[%emt 0:27:30]} fxe4 {[%emt 0:02:30]} 21. Bxe4 {[%emt 0:00:30]} Nf6 {[%emt 0:00:30]} 22. Bxc6 {[%emt 0:00:00]} bxc6 {[%emt 0:09:30]} 23. Naxc6 {[%emt 0:01:00]} Qd6 {[%emt 0:00:30]} 24. Nxb8 {[%emt 0:00:30]} Nb5 {[%emt 0:00:30]} 25. Nbc6 {[%emt 0:00:00]} Nxd4 {[%emt 0:04:30]} 26. Nxd4 {[%emt 0:00:00]} Qxe5 {[%emt 0:00:00]} 27. Qc5 {[%emt 0:01:30]} Nd5 {[%emt 0:11:36]} 28. Re1 {[%emt 0:00:30]} Qf6 {[%emt 0:00:03]} 29. Nxe6 {[%emt 0:00:00]} 1-0

[Event "World Junior U20 Girls 2018"]
[Site "Gebze"]
[Date "2018.09.08"]
[Round "5"]
[White "Kanakova, Natalie"]
[Black "Dordzhieva, Dinara"]
[Result "0-1"]
[ECO "B85"]
[WhiteElo "2201"]
[BlackElo "2318"]
[Annotator "ChessBase"]
[PlyCount "126"]
[EventDate "2018.09.05"]
[EventType "swiss"]
[EventCountry "TUR"]
[SourceTitle "playchess.com"]
[Source "ChessBase"]
[SourceQuality "1"]
[TimeControl "40/5400+30:1800+30"]

1. e4 {[%emt 0:00:30]} c5 {[%emt 0:05:30]} 2. Nf3 {[%emt 0:00:30]} e6 {[%emt 0:00:00]} 3. d4 {[%emt 0:00:00]} cxd4 {[%emt 0:00:00]} 4. Nxd4 {[%emt 0:00:00]} Nf6 {[%emt 0:00:00]} 5. Nc3 {[%emt 0:01:30]} d6 {[%emt 0:00:00]} 6. Be2 {[%emt 0:01:30]} a6 {[%emt 0:00:30]} 7. O-O {[%emt 0:00:30]} Be7 {[%emt 0:00:00]} 8. f4 {[%emt 0:02:30]} O-O {[%emt 0:00:00]} 9. a4 {[%emt 0:01:30]} Nc6 {[%emt 0:00:30]} 10. Be3 {[%emt 0:01:30]} Qc7 {[%emt 0:00:30]} 11. Kh1 {[%emt 0:00:30]} Nxd4 {[%emt 0:00:30]} 12. Qxd4 {[%emt 0:01:30]} Bd7 {[%emt 0:00:30]} 13. e5 {[%emt 0:13:30]} Ne8 {[%emt 0:00:00]} 14. Rad1 {[%emt 0:07:30]} Bc6 {[%emt 0:01:00]} 15. Bf3 {[%emt 0:01:30]} Bxf3 {[%emt 0:06:30]} 16. Rxf3 {[%emt 0:01:30]} Rd8 {[%emt 0:00:00]} 17. Qe4 {[%emt 0:03:30]} g6 {[%emt 0:10:00]} 18. Bd4 {[%emt 0:03:30]} d5 {[%emt 0:13:30]} 19. Qe3 {[%emt 0:09:30]} Qc6 {[%emt 0:07:30]} 20. a5 {[%emt 0:05:30]} Ng7 {[%emt 0:02:30]} 21. Qd2 {[%emt 0:02:30]} Rc8 {[%emt 0:03:30]} 22. Bb6 {[%emt 0:04:30]} Nf5 {[%emt 0:05:30]} 23. Rc1 {[%emt 0:01:30]} Bb4 {[%emt 0:07:30]} 24. Qf2 {[%emt 0:01:30]} Bc5 {[%emt 0:03:30]} 25. Bxc5 {[%emt 0:04:30]} Qxc5 {[%emt 0:00:30]} 26. Ra1 {[%emt 0:01:30]} Qxf2 {[%emt 0:03:30]} 27. Rxf2 {[%emt 0:00:00]} Rc5 {[%emt 0:08:30]} 28. Nd1 {[%emt 0:10:00]} Rfc8 {[%emt 0:01:30]} 29. c3 {[%emt 0:00:30]} Ne7 {[%emt 0:02:11]} 30. b3 {[%emt 0:04:52]} Nc6 {[%emt 0:05:56]} 31. Rfa2 {[%emt 0:00:20]} Na7 {[%emt 0:01:01]} 32. Rc2 {[%emt 0:02:46]} Rb5 {[%emt 0:00:56]} 33. Rb2 {[%emt 0:00:44]} Rbc5 {[%emt 0:05:28]} 34. Rc2 {[%emt 0:05:05]} Nb5 {[%emt 0:00:09]} 35. Rac1 {[%emt 0:01:01]} Nd4 {[%emt 0:00:30]} 36. Rb2 {[%emt 0:03:03]} Rxa5 {[%emt 0:00:20]} 37. b4 {[%emt 0:00:19]} Ra3 {[%emt 0:00:54]} 38. g3 {[%emt 0:00:48]} Nb5 {[%emt 0:01:11]} 39. Rbc2 {[%emt 0:01:40]} Rb3 {[%emt 0:00:09]} 40. Kg2 {[%emt 0:00:00]} Na3 {[%emt 0:00:00]} 41. Rb2 {[%emt 0:03:22]} Rxb2+ {[%emt 0:05:45]} 42. Nxb2 {[%emt 0:00:00]} Nb5 {[%emt 0:01:30]} 43. Na4 {[%emt 0:05:00]} Rc4 {[%emt 0:00:30]} 44. Nc5 {[%emt 0:02:30]} Rxc3 {[%emt 0:00:30]} 45. Rxc3 {[%emt 0:00:30]} Nxc3 {[%emt 0:00:30]} 46. Kf3 {[%emt 0:00:30]} Na2 {[%emt 0:03:30]} 47. b5 {[%emt 0:01:30]} axb5 {[%emt 0:00:30]} 48. Nxb7 {[%emt 0:01:30]} Nc3 {[%emt 0:01:30]} 49. Ke3 {[%emt 0:00:30]} Ne4 {[%emt 0:05:30]} 50. Kd4 {[%emt 0:00:30]} Kf8 {[%emt 0:00:30]} 51. Na5 {[%emt 0:03:30]} Ke8 {[%emt 0:01:30]} 52. Nc6 {[%emt 0:01:30]} Kd7 {[%emt 0:02:42]} 53. Nb4 {[%emt 0:00:30]} h5 {[%emt 0:00:18]} 54. Nd3 {[%emt 0:01:01]} Kc6 {[%emt 0:00:30]} 55. Nb4+ {[%emt 0:00:30]} Kb6 {[%emt 0:00:30]} 56. Kd3 {[%emt 0:00:30]} Nf2+ {[%emt 0:00:30]} 57. Kd4 {[%emt 0:00:30]} Ng4 {[%emt 0:00:30]} 58. h4 {[%emt 0:00:30]} Nh6 {[%emt 0:00:30]} 59. Ke3 {[%emt 0:00:00]} Nf5+ {[%emt 0:00:00]} 60. Kf3 {[%emt 0:00:29]} Kc5 {[%emt 0:00:00]} 61. Na6+ {[%emt 0:00:30]} Kc4 {[%emt 0:00:30]} 62. g4 {[%emt 0:00:30]} hxg4+ {[%emt 0:00:30]} 63. Kxg4 {[%emt 0:00:30]} b4 {[%emt 0:00:00]} 0-1

[Event "World Junior U20 Girls 2018"]
[Site "Gebze"]
[Date "2018.09.08"]
[Round "5"]
[White "Georgescu, Lena"]
[Black "De Silva, Tenara"]
[Result "1/2-1/2"]
[ECO "B09"]
[WhiteElo "2195"]
[BlackElo "1764"]
[Annotator "NA"]
[PlyCount "75"]
[EventDate "2018.09.05"]
[EventType "swiss"]
[EventCountry "TUR"]
[SourceTitle "playchess.com"]
[Source "ChessBase"]
[SourceQuality "1"]
[TimeControl "40/5400+30:1800+30"]

1. e4 {[%emt 0:00:30]} d6 {[%emt 0:00:30]} 2. d4 {[%emt 0:00:30]} g6 {[%emt 0:00:00]} 3. Nc3 {[%emt 0:00:00]} Bg7 {[%emt 0:00:00]} 4. f4 {[%emt 0:02:00]} Nf6 {[%emt 0:02:30]} 5. Nf3 {[%emt 0:00:30]} O-O {[%emt 0:00:30]} 6. Bd3 {[%emt 0:00:30]} Nc6 {[%emt 0:02:30]} 7. e5 {[%emt 0:00:30]} dxe5 {[%emt 0:00:30]} 8. dxe5 {[%emt 0:00:30]} Nd5 {[%emt 0:04:30]} 9. O-O {[%emt 0:00:30] B09: Pirc Defence: Austrian Attack} (9. Nxd5 Qxd5 10. Qe2 Bg4 11. Be4 Qa5+ 12. Bd2 Qb6 13. O-O-O Nd4 14. Qd3 Rfd8 15. Qa3 Bxf3 16. Bxf3 Nxf3 17. Qxf3 c6 18. Kb1 Qb5 19. Bc1 Rd5 {1-0 (35) Goryachkina,A (2496)-Rozum,I (2581) Sochi 2018}) 9... Nxc3 {[%emt 0:03:30]} 10. bxc3 {[%emt 0:00:00]} Qd5 {[%emt 0:02:30]} 11. Be3 {[%emt 0:12:00]} Na5 $146 {[%emt 0:13:30]} ({Predecessor:} 11... Bg4 12. Qe1 Na5 13. Nd2 Rad8 14. Qg3 Bc8 15. c4 Qe6 16. Rae1 Nc6 {1-0 (49) Derouineau,J-Gil,A corr 1990}) 12. Qe2 {[%emt 0:03:30]} Bg4 {[%emt 0:01:30]} 13. h3 {[%emt 0:11:30]} Bxf3 {[%emt 0:00:00]} 14. Qxf3 {[%emt 0:03:30]} Qxf3 {[%emt 0:01:00]} 15. Rxf3 {[%emt 0:00:00]} b6 {[%emt 0:00:00]} 16. Re1 {[%emt 0:09:00]} Rad8 {[%emt 0:03:00]} 17. Bf2 {[%emt 0:01:30]} c5 {[%emt 0:03:30]} 18. c4 {[%emt 0:08:30]} f6 {[%emt 0:17:30]} 19. Bh4 {[%emt 0:03:30]} e6 {[%emt 0:05:30]} 20. Rfe3 {[%emt 0:08:30]} Rde8 {[%emt 0:02:30]} 21. exf6 {[%emt 0:03:30]} Bxf6 {[%emt 0:00:30]} 22. Bf2 {[%emt 0:04:30]} Bc3 {[%emt 0:07:30]} 23. R1e2 {[%emt 0:02:30]} Bd4 {[%emt 0:03:30]} 24. Rxe6 {[%emt 0:04:30]} Rxe6 {[%emt 0:00:30]} 25. Rxe6 {[%emt 0:00:30]} Rxf4 {[%emt 0:00:30]} 26. Bxd4 {[%emt 0:00:30]} Rxd4 $11 {[%emt 0:00:30]} 27. Re7 {[%emt 0:03:00]} Nxc4 {[%emt 0:00:00]} 28. Rxa7 {[%emt 0:03:58]} Nb2 {[%emt 0:05:00]} 29. Bb5 {[%emt 0:01:25]} Rd1+ {[%emt 0:00:30]} 30. Kh2 {[%emt 0:00:39]} Rc1 {[%emt 0:01:30]} 31. Rb7 {[%emt 0:07:40]} Rxc2 {[%emt 0:00:30]} 32. Rxb6 {[%emt 0:00:02]} Nc4 {[%emt 0:01:40]} 33. Rb8+ {[%emt 0:01:45]} Kg7 {[%emt 0:01:02]} 34. Rb7+ {[%emt 0:00:25]} Kh6 {[%emt 0:00:55]} 35. Bxc4 {[%emt 0:02:19]} Rxc4 {[%emt 0:00:30]} 36. Rc7 {[%emt 0:00:00]} Ra4 {[%emt 0:00:08]} 37. Rxc5 {[%emt 0:00:00]} Rxa2 {[%emt 0:00:30]} 38. Rb5 {[%emt 0:00:13]} 1/2-1/2

[Event "World Junior U20 Girls 2018"]
[Site "Gebze"]
[Date "2018.09.08"]
[Round "5"]
[White "Ivana Maria, Furtado"]
[Black "Beydullayeva, Govhar"]
[Result "1/2-1/2"]
[ECO "D11"]
[WhiteElo "2144"]
[BlackElo "2202"]
[Annotator "NA"]
[PlyCount "91"]
[EventDate "2018.09.05"]
[EventType "swiss"]
[EventCountry "TUR"]
[SourceTitle "playchess.com"]
[Source "ChessBase"]
[SourceQuality "1"]
[TimeControl "40/5400+30:1800+30"]

1. d4 {[%emt 0:00:30]} d5 {[%emt 0:00:30]} 2. Nf3 {[%emt 0:00:00]} Nf6 {[%emt 0:00:30]} 3. g3 {[%emt 0:00:00]} Bf5 {[%emt 0:00:00]} 4. c4 {[%emt 0:00:30]} c6 {[%emt 0:00:00]} 5. Bg2 {[%emt 0:00:30]} e6 {[%emt 0:00:30]} 6. O-O {[%emt 0:00:30]} h6 {[%emt 0:00:30]} 7. Nc3 {[%emt 0:00:30]} Be7 {[%emt 0:00:30]} 8. Qb3 {[%emt 0:00:30]} Qb6 {[%emt 0:00:30]} 9. c5 {[%emt 0:03:30]} Qa6 {[%emt 0:00:00] D11: Slav Defence: 3 Nf3 sidelines and 3...Nf6 4 e3 Bg4} 10. Bf4 {[%emt 0:08:30]} (10. Re1 b6 11. Bf1 Qb7 12. Bf4 Nbd7 13. Nd2 O-O 14. e4 Nxe4 15. Ncxe4 Bxe4 16. Nxe4 dxe4 17. Rxe4 {½-½ (31) Nyzhnyk,I (2628)-Shimanov,A (2593) Saint Louis 2015}) 10... O-O {[%emt 0:18:00]} 11. Rfc1 {[%emt 0:07:30]} b6 {[%emt 0:05:30]} 12. Na4 $146 {[%emt 0:03:30]} ({Predecessor:} 12. Bf1 Qb7 13. a4 Rc8 14. a5 b5 15. Nd2 Na6 16. f3 g5 17. Bd6 Bxd6 18. cxd6 {1-0 (28) Balog,I (2423)-Varga,C (2391) Miskolc 2008}) 12... Nbd7 {[%emt 0:03:30]} 13. Qd1 {[%emt 0:16:30]} bxc5 {[%emt 0:05:30]} 14. Nxc5 {[%emt 0:01:30]} Nxc5 {[%emt 0:00:30]} 15. dxc5 {[%emt 0:00:30]} Nd7 {[%emt 0:09:30]} 16. b4 {[%emt 0:07:30]} Bf6 {[%emt 0:14:30]} 17. Nd4 {[%emt 0:00:00]} Bxd4 {[%emt 0:00:30]} 18. Qxd4 {[%emt 0:00:00]} Qxe2 {[%emt 0:00:30]} 19. Bd6 {[%emt 0:00:30]} Rfe8 {[%emt 0:06:30]} 20. Bf1 {[%emt 0:01:30]} Qh5 {[%emt 0:04:30]} 21. b5 {[%emt 0:09:30]} Be4 {[%emt 0:04:30]} 22. Re1 {[%emt 0:03:30]} (22. Rc3 $11) 22... e5 {[%emt 0:08:17]} 23. Qd1 {[%emt 0:05:30]} Bf3 {[%emt 0:03:11]} 24. Qa4 {[%emt 0:02:30]} cxb5 {[%emt 0:00:55]} 25. Bxb5 {[%emt 0:02:30]} Nf6 {[%emt 0:02:39]} 26. Qh4 {[%emt 0:01:30]} Qxh4 {[%emt 0:02:48]} 27. gxh4 {[%emt 0:00:30]} Ne4 {[%emt 0:06:09]} 28. Bxe8 {[%emt 0:01:30]} Rxe8 {[%emt 0:00:00]} 29. Re3 {[%emt 0:00:30]} Bg4 {[%emt 0:02:42]} 30. f3 {[%emt 0:02:30]} Nxd6 {[%emt 0:00:04]} 31. cxd6 {[%emt 0:00:30]} Bf5 {[%emt 0:00:36]} 32. Rd1 {[%emt 0:01:30]} Be6 {[%emt 0:00:54]} 33. Rxe5 {[%emt 0:02:35]} Rd8 {[%emt 0:00:02]} 34. Re3 {[%emt 0:05:38]} Rxd6 {[%emt 0:01:00]} 35. Ra3 {[%emt 0:00:03]} a6 {[%emt 0:00:16]} 36. Rd4 {[%emt 0:00:35]} Kf8 {[%emt 0:00:48]} 37. Rda4 $16 {[%emt 0:05:59]} Bc8 {[%emt 0:00:06]} 38. Rc3 {[%emt 0:00:15]} Bd7 {[%emt 0:00:13]} 39. Rd4 {[%emt 0:01:21]} Ke7 {[%emt 0:00:24]} 40. Kf2 {[%emt 0:00:00]} Be6 {[%emt 0:00:00]} 41. a3 {[%emt 0:05:04]} Kf6 {[%emt 0:03:56]} 42. Ke3 {[%emt 0:00:30]} Bd7 {[%emt 0:04:30]} 43. Rc5 {[%emt 0:02:30]} Ke6 {[%emt 0:00:30]} 44. Rb4 {[%emt 0:02:30]} Bb5 {[%emt 0:01:30]} 45. Kd4 {[%emt 0:01:30]} Rd7 {[%emt 0:04:30]} 46. a4 {[%emt 0:05:30]} 1/2-1/2

[Event "World Junior U20 Girls 2018"]
[Site "Gebze"]
[Date "2018.09.08"]
[Round "5"]
[White "Urh, Zala"]
[Black "Kocyigit, Buse Naz"]
[Result "1-0"]
[ECO "D46"]
[WhiteElo "2128"]
[BlackElo "1944"]
[Annotator "NA"]
[PlyCount "51"]
[EventDate "2018.09.05"]
[EventType "swiss"]
[EventCountry "TUR"]
[SourceTitle "playchess.com"]
[Source "ChessBase"]
[SourceQuality "1"]
[TimeControl "40/5400+30:1800+30"]

1. d4 {[%emt 0:00:30]} d5 {[%emt 0:00:30]} 2. c4 {[%emt 0:00:30]} c6 {[%emt 0:00:00]} 3. Nf3 {[%emt 0:00:00]} Nf6 {[%emt 0:00:00]} 4. e3 {[%emt 0:00:00]} e6 {[%emt 0:00:30]} 5. Nbd2 {[%emt 0:00:00]} Be7 {[%emt 0:00:00]} 6. Bd3 {[%emt 0:00:00]} Nbd7 {[%emt 0:00:00]} 7. O-O {[%emt 0:00:00]} O-O {[%emt 0:00:00]} 8. e4 {[%emt 0:00:00]} dxe4 {[%emt 0:01:00]} 9. Nxe4 {[%emt 0:00:30]} Nxe4 {[%emt 0:00:30]} 10. Bxe4 {[%emt 0:00:00]} Nf6 {[%emt 0:00:30]} 11. Bc2 {[%emt 0:00:00]} h6 {[%emt 0:03:30]} 12. Qd3 {[%emt 0:00:30]} Qc7 {[%emt 0:06:30]} 13. Ne5 {[%emt 0:07:30]} Rd8 {[%emt 0:01:30]} 14. Bxh6 {[%emt 0:06:30]} Qb6 {[%emt 0:10:30]} 15. Qg3 {[%emt 0:13:30]} Bf8 {[%emt 0:01:30]} 16. Bg5 {[%emt 0:07:30]} Be7 {[%emt 0:01:30]} 17. Rad1 {[%emt 0:02:30]} Qxb2 {[%emt 0:04:30]} 18. Rd2 {[%emt 0:00:30]} Qb4 {[%emt 0:13:30]} 19. Rb1 {[%emt 0:02:30]} Qa5 {[%emt 0:06:30]} 20. Qh4 {[%emt 0:03:30]} Kf8 {[%emt 0:16:30]} 21. Qh8+ {[%emt 0:03:30]} Ng8 {[%emt 0:01:30]} 22. Bh7 {[%emt 0:00:00]} Bxg5 {[%emt 0:00:30]} 23. Qxg8+ {[%emt 0:00:00]} Ke7 {[%emt 0:00:30]} 24. Qxf7+ {[%emt 0:00:30]} Kd6 {[%emt 0:00:00]} 25. c5+ {[%emt 0:00:00]} Kd5 {[%emt 0:00:00]} 26. Qf3# {[%emt 0:00:00]} 1-0